[Event "RUS-chT Rapid Men 2018"]
[Site "Sochi"]
[Date "2018.10.08"]
[Round "4"]
[White "Nechaev, Oleg"]
[Black "Okun, Evgeny"]
[Result "1-0"]
[ECO "A20"]
[WhiteElo "2400"]
[BlackElo "2163"]
[Annotator "NA"]
[PlyCount "91"]
[EventDate "2018.10.05"]
[EventType "swiss"]
[EventCountry "RUS"]
[SourceTitle "playchess.com"]
[Source "ChessBase"]
[SourceQuality "1"]
[TimeControl "900+10"]

1. c4 {[%emt 0:00:00]} e5 {[%emt 0:00:00]} 2. g3 {[%emt 0:00:00]} Nc6 {[%emt 0:00:00]} 3. Bg2 {[%emt 0:00:00]} Bc5 {[%emt 0:00:00]} 4. Nc3 {[%emt 0:00:01]} a6 {[%emt 0:00:00]} 5. e3 {[%emt 0:00:01]} Ba7 {[%emt 0:00:01]} 6. Nge2 {[%emt 0:00:02]} d6 {[%emt 0:00:01]} 7. a3 {[%emt 0:01:09]} h5 {[%emt 0:00:04]} 8. h3 {[%emt 0:00:50]} h4 {[%emt 0:00:08]} 9. g4 {[%emt 0:00:04]} f5 {[%emt 0:00:01]} 10. gxf5 {[%emt 0:00:21]} Bxf5 {[%emt 0:00:02]} 11. b4 {[%emt 0:00:25]} Nf6 {[%emt 0:01:00]} 12. Bb2 {[%emt 0:00:26]} Bd3 {[%emt 0:01:35]} 13. Qb3 {[%emt 0:01:44]} e4 {[%emt 0:00:26]} 14. Nd5 {[%emt 0:00:47]} Ne5 {[%emt 0:03:26]} 15. Bxe5 {[%emt 0:00:32]} dxe5 {[%emt 0:00:23]} 16. Nc1 {[%emt 0:00:58]} Nxd5 {[%emt 0:05:29]} 17. cxd5 {[%emt 0:00:26]} Qg5 {[%emt 0:00:01]} 18. Rg1 {[%emt 0:01:13]} Bb5 {[%emt 0:00:10]} 19. a4 {[%emt 0:02:30]} Bd7 {[%emt 0:00:05]} 20. Ne2 {[%emt 0:00:02]} Qf6 {[%emt 0:00:53]} 21. Nc3 {[%emt 0:00:24]} Bf5 {[%emt 0:01:24]} 22. Nxe4 {[%emt 0:00:39]} Qg6 {[%emt 0:00:01]} 23. d6 {[%emt 0:04:15]} cxd6 {[%emt 0:01:14]} 24. Qd5 {[%emt 0:00:41]} Bxe4 {[%emt 0:01:42]} 25. Qxe4 {[%emt 0:00:02]} Qxe4 {[%emt 0:00:26]} 26. Bxe4 {[%emt 0:00:01]} Kf8 {[%emt 0:00:01]} 27. Rc1 {[%emt 0:00:08]} Bb6 {[%emt 0:00:40]} 28. Bxb7 {[%emt 0:00:14]} Rb8 {[%emt 0:00:01]} 29. Bxa6 {[%emt 0:00:06]} Bd8 {[%emt 0:00:03]} 30. Rc8 {[%emt 0:00:22]} Rxc8 {[%emt 0:00:02]} 31. Bxc8 {[%emt 0:00:01]} Kf7 {[%emt 0:00:15]} 32. Bb7 {[%emt 0:00:02]} Kf6 {[%emt 0:00:19]} 33. a5 {[%emt 0:00:13]} Bc7 {[%emt 0:00:01]} 34. Ke2 {[%emt 0:00:07]} Rb8 {[%emt 0:00:05]} 35. a6 {[%emt 0:00:01]} Bb6 {[%emt 0:00:00]} 36. Rc1 {[%emt 0:00:01]} Ke7 {[%emt 0:00:25]} 37. Rc6 {[%emt 0:00:06]} Ba7 {[%emt 0:00:01]} 38. Rc7+ {[%emt 0:00:31]} Kf6 {[%emt 0:00:07]} 39. b5 {[%emt 0:00:09]} g5 {[%emt 0:00:02]} 40. f3 {[%emt 0:00:09]} Ke6 {[%emt 0:00:06]} 41. Bc8+ {[%emt 0:00:07]} Kd5 {[%emt 0:00:12]} 42. Rxa7 Rxc8 43. Rb7 {[%emt 0:00:13]} Rc2 {[%emt 0:00:49]} 44. a7 {[%emt 0:00:03]} Ra2 {[%emt 0:00:00]} 45. b6 {[%emt 0:00:01]} Kc6 {[%emt 0:00:10]} 46. Rb8 {[%emt 0:00:04]} 1-0

[Event "RUS-chT Rapid Men 2018"]
[Site "Sochi"]
[Date "2018.10.08"]
[Round "4"]
[White "Gogolev, Artem"]
[Black "Sharafiev, Azat"]
[Result "0-1"]
[ECO "A04"]
[WhiteElo "2389"]
[BlackElo "2432"]
[Annotator "NA"]
[PlyCount "112"]
[EventDate "2018.10.05"]
[EventType "swiss"]
[EventCountry "RUS"]
[SourceTitle "playchess.com"]
[Source "ChessBase"]
[SourceQuality "1"]
[TimeControl "900+10"]

1. Nf3 {[%emt 0:00:00]} c5 {[%emt 0:00:00]} 2. c4 {[%emt 0:00:00]} g6 {[%emt 0:00:00]} 3. d4 {[%emt 0:00:27]} cxd4 {[%emt 0:00:01]} 4. Nxd4 {[%emt 0:00:02]} Nc6 {[%emt 0:00:02]} 5. e4 {[%emt 0:00:03]} Nf6 {[%emt 0:00:08]} 6. Nc3 {[%emt 0:00:02]} d6 {[%emt 0:00:05]} 7. Be2 {[%emt 0:00:09]} Nxd4 {[%emt 0:00:03]} 8. Qxd4 {[%emt 0:00:03]} Bg7 {[%emt 0:00:01]} 9. Be3 {[%emt 0:00:10]} O-O {[%emt 0:00:03]} 10. Qd2 {[%emt 0:00:05]} a5 {[%emt 0:00:03]} 11. O-O {[%emt 0:00:09]} a4 {[%emt 0:00:01]} 12. f3 {[%emt 0:00:07]} Qa5 {[%emt 0:01:08]} 13. Rab1 {[%emt 0:01:44]} Be6 {[%emt 0:00:09]} 14. Rfc1 {[%emt 0:00:35]} Rfc8 {[%emt 0:00:17]} 15. b4 {[%emt 0:02:59]} axb3 {[%emt 0:00:03]} 16. axb3 {[%emt 0:00:01]} Qb4 {[%emt 0:00:06]} 17. Nd5 {[%emt 0:01:49]} Qxd2 {[%emt 0:00:07]} 18. Bxd2 {[%emt 0:00:05]} Nxd5 {[%emt 0:00:03]} 19. cxd5 {[%emt 0:00:06]} Bd7 {[%emt 0:01:09]} 20. Rxc8+ {[%emt 0:00:43]} Rxc8 {[%emt 0:00:01]} 21. Rc1 {[%emt 0:00:03]} Rxc1+ {[%emt 0:00:05]} 22. Bxc1 {[%emt 0:00:03]} Bd4+ {[%emt 0:00:01]} 23. Kf1 {[%emt 0:00:07]} f5 {[%emt 0:00:02]} 24. Bd3 {[%emt 0:01:08]} fxe4 {[%emt 0:00:09]} 25. fxe4 {[%emt 0:00:00]} Kf7 {[%emt 0:00:15]} 26. Bg5 {[%emt 0:01:33]} Bf6 {[%emt 0:01:23]} 27. Bxf6 {[%emt 0:01:08]} Kxf6 {[%emt 0:01:19]} 28. Ke2 {[%emt 0:00:03]} Ke5 {[%emt 0:00:11]} 29. Ke3 {[%emt 0:00:01]} Bg4 {[%emt 0:00:18]} 30. b4 {[%emt 0:00:29]} g5 {[%emt 0:00:21]} 31. Bc2 {[%emt 0:00:16]} Bh5 {[%emt 0:00:19]} 32. g3 {[%emt 0:00:39]} h6 {[%emt 0:00:08]} 33. Bb3 {[%emt 0:00:24]} Be8 {[%emt 0:00:17]} 34. Bc2 {[%emt 0:00:20]} Bb5 {[%emt 0:00:18]} 35. Bd3 {[%emt 0:00:10]} Ba4 {[%emt 0:00:19]} 36. Bb1 {[%emt 0:00:04]} Bb3 {[%emt 0:00:28]} 37. Bd3 {[%emt 0:00:02]} e6 {[%emt 0:00:06]} 38. dxe6 {[%emt 0:00:08]} Bxe6 {[%emt 0:00:02]} 39. Be2 {[%emt 0:00:10]} Ba2 {[%emt 0:00:16]} 40. Bd3 {[%emt 0:00:30]} Bb3 {[%emt 0:00:05]} 41. Bb1 {[%emt 0:00:18]} Bf7 {[%emt 0:00:03]} 42. Bc2 {[%emt 0:00:36]} Bg6 {[%emt 0:00:06]} 43. Bd3 {[%emt 0:00:06]} Bh7 {[%emt 0:00:23]} 44. h4 {[%emt 0:00:47]} gxh4 {[%emt 0:00:19]} 45. gxh4 {[%emt 0:00:02]} Bg6 {[%emt 0:00:07]} 46. Bc2 {[%emt 0:01:12]} d5 {[%emt 0:00:10]} 47. Bd3 {[%emt 0:00:35]} Bxe4 {[%emt 0:00:10]} 48. Be2 {[%emt 0:00:04]} d4+ {[%emt 0:00:06]} 49. Kd2 {[%emt 0:00:02]} Kf4 {[%emt 0:00:08]} 50. Bd1 {[%emt 0:00:39]} Kg3 {[%emt 0:00:26]} 51. h5 {[%emt 0:00:03]} Bf3 {[%emt 0:02:00]} 52. Bb3 {[%emt 0:00:29]} Bxh5 {[%emt 0:00:14]} 53. Kd3 {[%emt 0:00:02]} Bf3 {[%emt 0:00:04]} 54. b5 {[%emt 0:00:45]} h5 {[%emt 0:00:10]} 55. Kxd4 {[%emt 0:00:06]} h4 {[%emt 0:00:05]} 56. Be6 {[%emt 0:00:09]} h3 {[%emt 0:00:10]} 0-1

[Event "RUS-chT Rapid Men 2018"]
[Site "Sochi"]
[Date "2018.10.08"]
[Round "4"]
[White "Ozgibcev, Anatoly"]
[Black "Shariyazdanov, Andrey"]
[Result "1-0"]
[ECO "B08"]
[WhiteElo "2368"]
[BlackElo "2526"]
[Annotator "ChessBase"]
[PlyCount "63"]
[EventDate "2018.10.05"]
[EventType "swiss"]
[EventCountry "RUS"]
[SourceTitle "playchess.com"]
[Source "ChessBase"]
[SourceQuality "1"]
[TimeControl "900+10"]

1. e4 {[%emt 0:00:00]} g6 {[%emt 0:00:00]} 2. d4 {[%emt 0:00:00]} Bg7 {[%emt 0:00:00]} 3. Nf3 {[%emt 0:00:00]} d6 {[%emt 0:00:00]} 4. Nc3 {[%emt 0:00:00]} Nf6 {[%emt 0:00:00]} 5. h3 {[%emt 0:00:00]} O-O {[%emt 0:00:00]} 6. Be3 {[%emt 0:00:01]} a6 {[%emt 0:00:05]} 7. a4 {[%emt 0:00:04]} Nc6 {[%emt 0:00:02]} 8. Bc4 {[%emt 0:00:17]} e6 {[%emt 0:01:19]} 9. Bb3 {[%emt 0:02:40]} Rb8 {[%emt 0:00:30]} 10. a5 {[%emt 0:00:23]} Ne7 {[%emt 0:00:15]} 11. O-O {[%emt 0:00:36]} d5 {[%emt 0:00:04]} 12. exd5 {[%emt 0:00:07]} exd5 {[%emt 0:00:06]} 13. Bf4 {[%emt 0:00:18]} h6 {[%emt 0:00:23]} 14. Ne5 {[%emt 0:00:48]} Be6 {[%emt 0:00:54]} 15. Na4 {[%emt 0:00:19]} Nf5 {[%emt 0:01:34]} 16. Nc5 {[%emt 0:00:07]} Bc8 {[%emt 0:00:06]} 17. c3 {[%emt 0:00:23]} Ra8 {[%emt 0:00:02]} 18. Bc2 {[%emt 0:00:14]} b6 {[%emt 0:00:39]} 19. axb6 {[%emt 0:00:45]} cxb6 {[%emt 0:00:01]} 20. Nb3 {[%emt 0:00:23]} Nd6 {[%emt 0:00:23]} 21. Nd2 {[%emt 0:00:32]} Bb7 {[%emt 0:01:04]} 22. Re1 {[%emt 0:00:08]} Re8 {[%emt 0:00:13]} 23. Bd3 {[%emt 0:00:20]} a5 {[%emt 0:00:13]} 24. Qc2 {[%emt 0:00:38]} Nfe4 {[%emt 0:01:04]} 25. f3 {[%emt 0:00:17]} Qh4 {[%emt 0:02:00]} 26. Ng4 {[%emt 0:02:48]} h5 {[%emt 0:00:15]} 27. fxe4 {[%emt 0:00:30]} dxe4 {[%emt 0:03:06]} 28. Bf1 {[%emt 0:00:17]} Nf5 {[%emt 0:00:21]} 29. Nxe4 {[%emt 0:01:53]} hxg4 {[%emt 0:00:15]} 30. g3 Qh5 31. h4 {[%emt 0:03:52]} Bxd4+ {[%emt 0:03:40]} 32. cxd4 {[%emt 0:00:30]} 1-0

[Event "RUS-chT Rapid Men 2018"]
[Site "Sochi"]
[Date "2018.10.08"]
[Round "4"]
[White "Papenin, Nikolai"]
[Black "Kryakvin, Dmitry"]
[Result "0-1"]
[ECO "E20"]
[WhiteElo "2334"]
[BlackElo "2595"]
[Annotator "ChessBase"]
[PlyCount "58"]
[EventDate "2018.10.05"]
[EventType "swiss"]
[EventCountry "RUS"]
[SourceTitle "playchess.com"]
[Source "ChessBase"]
[SourceQuality "1"]
[TimeControl "900+10"]

1. d4 {[%emt 0:00:00]} Nf6 {[%emt 0:00:00]} 2. c4 {[%emt 0:00:00]} e6 {[%emt 0:00:00]} 3. Nc3 {[%emt 0:00:00]} Bb4 {[%emt 0:00:00]} 4. g3 {[%emt 0:00:00]} O-O {[%emt 0:00:05]} 5. Bg2 {[%emt 0:00:01]} d6 {[%emt 0:00:02]} 6. Nf3 {[%emt 0:00:02]} Nc6 {[%emt 0:00:08]} 7. O-O {[%emt 0:00:03]} e5 {[%emt 0:00:31]} 8. Nd5 {[%emt 0:01:56]} exd4 {[%emt 0:00:47]} 9. Bg5 {[%emt 0:00:27]} Bc5 {[%emt 0:01:02]} 10. Qc1 {[%emt 0:01:20]} Nb4 {[%emt 0:05:58]} 11. Nxf6+ {[%emt 0:06:06]} gxf6 {[%emt 0:00:02]} 12. Bh4 {[%emt 0:00:14]} Kg7 {[%emt 0:01:05]} 13. Nd2 {[%emt 0:02:02]} Bf5 {[%emt 0:00:37]} 14. Bxb7 {[%emt 0:00:30]} Re8 {[%emt 0:02:02]} 15. a3 {[%emt 0:02:09]} Nc2 {[%emt 0:00:26]} 16. Ra2 {[%emt 0:00:08]} d3 {[%emt 0:01:17]} 17. e3 {[%emt 0:01:52]} a5 {[%emt 0:01:13]} 18. b3 {[%emt 0:00:25]} Rb8 {[%emt 0:00:18]} 19. Bc6 {[%emt 0:00:04]} Re6 {[%emt 0:00:22]} 20. Kh1 {[%emt 0:00:11]} Kg8 {[%emt 0:00:46]} 21. Qd1 {[%emt 0:00:08]} Bg6 {[%emt 0:00:12]} 22. Qf3 {[%emt 0:00:05]} Qf8 {[%emt 0:00:58]} 23. Bd5 {[%emt 0:00:05]} Re5 {[%emt 0:00:09]} 24. Bxf6 {[%emt 0:00:08]} Rf5 {[%emt 0:00:03]} 25. Qg4 {[%emt 0:00:42]} Rxf6 {[%emt 0:00:02]} 26. Ne4 {[%emt 0:00:14]} Rf5 {[%emt 0:00:07]} 27. Nxc5 {[%emt 0:00:14]} dxc5 {[%emt 0:00:09]} 28. e4 {[%emt 0:00:08]} Ne3 {[%emt 0:00:18]} 29. Qh3 {[%emt 0:00:20]} Rh5 {[%emt 0:00:04]} 0-1

[Event "RUS-chT Rapid Men 2018"]
[Site "Sochi"]
[Date "2018.10.08"]
[Round "4"]
[White "Inozemtsev, Sergei"]
[Black "Ivlev, Aleksey"]
[Result "0-1"]
[ECO "C68"]
[WhiteElo "2310"]
[BlackElo "2326"]
[Annotator "NA"]
[PlyCount "54"]
[EventDate "2018.10.05"]
[EventType "swiss"]
[EventCountry "RUS"]
[SourceTitle "playchess.com"]
[Source "ChessBase"]
[SourceQuality "1"]
[TimeControl "900+10"]

1. e4 {[%emt 0:00:00]} e5 {[%emt 0:00:00]} 2. Nf3 {[%emt 0:00:00]} Nc6 {[%emt 0:00:00]} 3. Bb5 {[%emt 0:00:00]} a6 {[%emt 0:00:00]} 4. Bxc6 {[%emt 0:00:00]} dxc6 {[%emt 0:00:01]} 5. O-O {[%emt 0:00:01]} Bg4 {[%emt 0:00:11]} 6. h3 {[%emt 0:00:02]} h5 {[%emt 0:00:01]} 7. d3 {[%emt 0:00:02]} Qf6 {[%emt 0:00:02]} 8. Nbd2 {[%emt 0:00:01]} Ne7 {[%emt 0:00:01]} 9. Re1 {[%emt 0:00:07]} Ng6 {[%emt 0:00:05]} 10. d4 {[%emt 0:00:02]} Nf4 {[%emt 0:01:54]} 11. hxg4 {[%emt 0:01:57]} hxg4 {[%emt 0:00:06]} 12. Nh2 {[%emt 0:00:18]} Nxg2 {[%emt 0:01:40]} 13. Ndf1 {[%emt 0:01:55]} Nxe1 {[%emt 0:00:22]} 14. Qxe1 {[%emt 0:00:07]} exd4 {[%emt 0:00:09]} 15. Nxg4 {[%emt 0:02:09]} Qe6 {[%emt 0:01:39]} 16. f3 {[%emt 0:02:08]} f5 {[%emt 0:00:44]} 17. Ngh2 {[%emt 0:00:16]} O-O-O {[%emt 0:00:44]} 18. e5 {[%emt 0:01:08]} Be7 {[%emt 0:01:01]} 19. f4 {[%emt 0:00:22]} Rh3 {[%emt 0:00:32]} 20. Qf2 {[%emt 0:00:50]} Rdh8 {[%emt 0:02:43]} 21. Bd2 {[%emt 0:01:05]} Bc5 {[%emt 0:01:50]} 22. Kh1 {[%emt 0:00:20]} R3h6 {[%emt 0:00:30]} 23. Qf3 {[%emt 0:00:05]} Qc4 {[%emt 0:00:31]} 24. Qg2 {[%emt 0:00:58]} Bb6 {[%emt 0:00:49]} 25. Bc1 {[%emt 0:00:13]} Qxf1+ {[%emt 0:00:25]} 26. Qxf1 {[%emt 0:00:06]} Rxh2+ {[%emt 0:00:01]} 27. Kg1 {[%emt 0:00:01]} d3+ {[%emt 0:00:02]} 0-1

[Event "RUS-chT Rapid Men 2018"]
[Site "Sochi"]
[Date "2018.10.08"]
[Round "4"]
[White "Kurbedinov, Ramis"]
[Black "Apryshko, Gleb"]
[Result "1-0"]
[ECO "A04"]
[WhiteElo "2305"]
[BlackElo "2399"]
[Annotator "NA"]
[PlyCount "107"]
[EventDate "2018.10.05"]
[EventType "swiss"]
[EventCountry "RUS"]
[SourceTitle "playchess.com"]
[Source "ChessBase"]
[SourceQuality "1"]
[TimeControl "900+10"]

1. Nf3 {[%emt 0:00:00]} g6 {[%emt 0:00:01]} 2. d4 {[%emt 0:00:00]} Bg7 {[%emt 0:00:02]} 3. c4 {[%emt 0:00:00]} d6 {[%emt 0:00:42]} 4. e4 {[%emt 0:00:10]} e5 {[%emt 0:00:33]} 5. Nc3 {[%emt 0:00:31]} exd4 {[%emt 0:00:05]} 6. Nxd4 {[%emt 0:00:02]} Nc6 {[%emt 0:00:01]} 7. Be3 {[%emt 0:00:29]} Bd7 {[%emt 0:00:01]} 8. Be2 {[%emt 0:00:51]} Nxd4 {[%emt 0:00:03]} 9. Bxd4 {[%emt 0:00:02]} Bxd4 {[%emt 0:00:01]} 10. Qxd4 {[%emt 0:00:02]} Qf6 {[%emt 0:00:01]} 11. O-O-O {[%emt 0:00:48]} Qxd4 {[%emt 0:00:11]} 12. Rxd4 {[%emt 0:00:02]} O-O-O {[%emt 0:01:22]} 13. Nd5 {[%emt 0:00:54]} Re8 {[%emt 0:00:09]} 14. Bf3 {[%emt 0:01:22]} Ne7 {[%emt 0:00:25]} 15. Nf6 {[%emt 0:01:22]} Nc6 {[%emt 0:00:04]} 16. Rd2 {[%emt 0:00:11]} Re5 {[%emt 0:00:46]} 17. Be2 {[%emt 0:01:13]} Be6 {[%emt 0:02:30]} 18. b3 {[%emt 0:01:22]} a5 {[%emt 0:00:31]} 19. f4 {[%emt 0:01:14]} Rc5 {[%emt 0:00:01]} 20. Kb2 {[%emt 0:00:03]} a4 {[%emt 0:01:46]} 21. g4 {[%emt 0:00:28]} h6 {[%emt 0:00:10]} 22. Rhd1 {[%emt 0:00:10]} g5 {[%emt 0:00:17]} 23. e5 {[%emt 0:00:25]} gxf4 {[%emt 0:00:57]} 24. exd6 {[%emt 0:00:02]} Ne5 {[%emt 0:01:01]} 25. Ne4 {[%emt 0:02:10]} Rc6 {[%emt 0:00:00]} 26. h3 {[%emt 0:00:50]} f3 {[%emt 0:00:56]} 27. Bf1 {[%emt 0:00:01]} h5 {[%emt 0:01:10]} 28. c5 {[%emt 0:00:34]} cxd6 {[%emt 0:00:21]} 29. cxd6 {[%emt 0:00:46]} axb3 {[%emt 0:00:27]} 30. axb3 {[%emt 0:00:03]} hxg4 {[%emt 0:00:10]} 31. hxg4 {[%emt 0:00:04]} Nxg4 {[%emt 0:00:16]} 32. d7+ {[%emt 0:00:19]} Kd8 {[%emt 0:00:04]} 33. Bb5 {[%emt 0:00:25]} Rb6 {[%emt 0:00:17]} 34. Rc1 {[%emt 0:00:07]} Rxb5 {[%emt 0:00:58]} 35. Rc8+ {[%emt 0:00:01]} Ke7 {[%emt 0:00:01]} 36. Rxh8 {[%emt 0:00:05]} Rxb3+ {[%emt 0:00:10]} 37. Kc1 {[%emt 0:00:34]} Bxd7 {[%emt 0:01:05]} 38. Rxd7+ Kxd7 39. Nc5+ {[%emt 0:00:02]} Kd6 {[%emt 0:00:01]} 40. Nxb3 {[%emt 0:00:02]} f2 {[%emt 0:00:00]} 41. Nd2 {[%emt 0:00:11]} Ne3 {[%emt 0:00:04]} 42. Rh3 {[%emt 0:00:26]} Ng4 {[%emt 0:02:23]} 43. Rf3 {[%emt 0:00:14]} Ne5 {[%emt 0:00:02]} 44. Rf6+ {[%emt 0:00:19]} Ke7 {[%emt 0:00:55]} 45. Rb6 f5 46. Kd1 {[%emt 0:00:12]} Nc4 {[%emt 0:01:15]} 47. Rxb7+ {[%emt 0:00:02]} Kf6 {[%emt 0:00:03]} 48. Nf1 {[%emt 0:00:04]} Nd6 {[%emt 0:00:24]} 49. Rb6 {[%emt 0:00:06]} Ke5 {[%emt 0:00:00]} 50. Ke2 {[%emt 0:00:02]} Ne4 {[%emt 0:00:07]} 51. Kf3 {[%emt 0:00:22]} Kd4 {[%emt 0:00:24]} 52. Rb5 {[%emt 0:00:20]} Nd6 {[%emt 0:00:14]} 53. Rb4+ {[%emt 0:00:07]} Kc3 {[%emt 0:00:10]} 54. Rf4 {[%emt 0:00:25]} 1-0

[Event "RUS-chT Rapid Men 2018"]
[Site "Sochi"]
[Date "2018.10.08"]
[Round "4"]
[White "Alexeev, Alexey"]
[Black "Zhakamukhov, Eduard"]
[Result "1/2-1/2"]
[ECO "B12"]
[WhiteElo "2287"]
[BlackElo "2068"]
[Annotator "NA"]
[PlyCount "121"]
[EventDate "2018.10.05"]
[EventType "swiss"]
[EventCountry "RUS"]
[SourceTitle "playchess.com"]
[Source "ChessBase"]
[SourceQuality "1"]
[TimeControl "900+10"]

1. e4 {[%emt 0:00:00]} c6 {[%emt 0:00:00]} 2. d4 {[%emt 0:00:00]} d5 {[%emt 0:00:00]} 3. e5 {[%emt 0:00:00]} Bf5 {[%emt 0:00:00]} 4. Nf3 {[%emt 0:00:00]} h6 {[%emt 0:00:00]} 5. Be2 {[%emt 0:00:02]} Nd7 {[%emt 0:00:00]} 6. Nh4 {[%emt 0:00:21]} e6 {[%emt 0:00:30]} 7. Nxf5 {[%emt 0:00:13]} exf5 {[%emt 0:00:02]} 8. Bd3 {[%emt 0:01:32]} g6 {[%emt 0:01:08]} 9. c4 {[%emt 0:03:03]} Bb4+ {[%emt 0:01:04]} 10. Nc3 {[%emt 0:00:29]} Qh4 {[%emt 0:03:39]} 11. O-O {[%emt 0:01:30]} Ne7 {[%emt 0:02:34]} 12. cxd5 {[%emt 0:01:25]} Qxd4 {[%emt 0:02:09]} 13. Be3 {[%emt 0:05:07]} Qxe5 {[%emt 0:00:22]} 14. dxc6 {[%emt 0:00:04]} bxc6 {[%emt 0:00:34]} 15. Re1 {[%emt 0:00:22]} Qf6 {[%emt 0:01:34]} 16. Bc4 {[%emt 0:00:16]} Bc5 17. Qe2 {[%emt 0:01:21]} Kf8 {[%emt 0:02:23]} 18. Rad1 {[%emt 0:00:38]} Bxe3 {[%emt 0:00:36]} 19. Rxd7 {[%emt 0:00:21]} Bc5 {[%emt 0:00:14]} 20. a3 {[%emt 0:00:18]} Kg7 {[%emt 0:00:51]} 21. Na4 {[%emt 0:00:24]} Bd6 {[%emt 0:00:07]} 22. Rd1 {[%emt 0:00:05]} Nd5 {[%emt 0:00:24]} 23. Bxd5 {[%emt 0:00:45]} cxd5 {[%emt 0:00:01]} 24. Rxd5 {[%emt 0:00:07]} Rhe8 {[%emt 0:00:13]} 25. Qf1 {[%emt 0:00:01]} Re6 {[%emt 0:00:15]} 26. g3 {[%emt 0:00:29]} Rae8 {[%emt 0:00:01]} 27. Rd1 {[%emt 0:00:02]} f4 {[%emt 0:00:07]} 28. Nc3 {[%emt 0:00:21]} fxg3 {[%emt 0:00:10]} 29. hxg3 {[%emt 0:00:07]} Bxa3 {[%emt 0:00:18]} 30. Nd5 {[%emt 0:00:16]} Qxb2 {[%emt 0:00:03]} 31. Rxa7 {[%emt 0:00:13]} Bc5 {[%emt 0:00:30]} 32. Ra5 {[%emt 0:00:14]} Bd6 {[%emt 0:00:09]} 33. Rb5 {[%emt 0:00:03]} Qc2 {[%emt 0:00:15]} 34. Ra1 {[%emt 0:00:14]} Qe4 {[%emt 0:00:09]} 35. Rd1 {[%emt 0:00:06]} h5 {[%emt 0:00:04]} 36. Qd3 {[%emt 0:00:08]} Qxd3 {[%emt 0:00:10]} 37. Rxd3 {[%emt 0:00:01]} Be5 {[%emt 0:00:16]} 38. Kg2 {[%emt 0:00:07]} Bf6 {[%emt 0:00:02]} 39. Nc7 {[%emt 0:00:03]} Re5 {[%emt 0:00:12]} 40. Nxe8+ {[%emt 0:00:05]} Rxe8 {[%emt 0:00:05]} 41. Rb7 {[%emt 0:00:03]} Re7 {[%emt 0:00:06]} 42. Rdd7 {[%emt 0:00:05]} Rxd7 {[%emt 0:00:05]} 43. Rxd7 {[%emt 0:00:01]} h4 {[%emt 0:00:05]} 44. g4 {[%emt 0:00:02]} g5 {[%emt 0:00:29]} 45. Rd3 {[%emt 0:00:20]} Be5 {[%emt 0:00:09]} 46. Rh3 {[%emt 0:00:08]} Kg6 {[%emt 0:00:05]} 47. f3 {[%emt 0:00:03]} f6 {[%emt 0:00:10]} 48. Kf2 {[%emt 0:00:02]} Bf4 {[%emt 0:00:05]} 49. Ke2 {[%emt 0:00:01]} Bg3 {[%emt 0:00:10]} 50. Kd3 {[%emt 0:00:02]} Be5 {[%emt 0:00:07]} 51. Ke4 {[%emt 0:00:01]} Bg3 {[%emt 0:00:05]} 52. Rh1 {[%emt 0:00:04]} Be5 {[%emt 0:00:11]} 53. Kd5 {[%emt 0:00:10]} Bf4 {[%emt 0:00:11]} 54. Ke6 {[%emt 0:00:50]} Be5 {[%emt 0:00:13]} 55. Ke7 {[%emt 0:00:58]} Kg7 {[%emt 0:00:07]} 56. Ke6 {[%emt 0:00:11]} Kg6 {[%emt 0:00:01]} 57. Rh3 {[%emt 0:00:13]} Bg3 {[%emt 0:00:15]} 58. Rh1 {[%emt 0:00:02]} Be5 {[%emt 0:00:01]} 59. Rh3 {[%emt 0:00:13]} Bg3 {[%emt 0:00:01]} 60. Kd5 {[%emt 0:00:04]} Be5 {[%emt 0:00:15]} 61. Rh1 {[%emt 0:00:08]} 1/2-1/2

[Event "RUS-chT Rapid Men 2018"]
[Site "Sochi"]
[Date "2018.10.08"]
[Round "4"]
[White "Kozak, Alexander"]
[Black "Kretov, Evgenij"]
[Result "1/2-1/2"]
[ECO "B22"]
[WhiteElo "2262"]
[BlackElo "2219"]
[Annotator "NA"]
[PlyCount "123"]
[EventDate "2018.10.05"]
[EventType "swiss"]
[EventCountry "RUS"]
[SourceTitle "playchess.com"]
[Source "ChessBase"]
[SourceQuality "1"]
[TimeControl "900+10"]

1. e4 {[%emt 0:00:00]} c5 {[%emt 0:00:00]} 2. c3 {[%emt 0:00:00]} d5 {[%emt 0:00:00]} 3. exd5 {[%emt 0:00:00]} Qxd5 {[%emt 0:00:00]} 4. d4 {[%emt 0:00:00]} g6 {[%emt 0:00:00]} 5. Nf3 {[%emt 0:00:00]} Bg7 {[%emt 0:00:00]} 6. Na3 {[%emt 0:00:00]} cxd4 {[%emt 0:00:13]} 7. Bc4 {[%emt 0:00:00]} Qd8 {[%emt 0:00:29]} 8. Qb3 {[%emt 0:00:44]} e6 {[%emt 0:00:19]} 9. Nb5 {[%emt 0:00:51]} a6 {[%emt 0:00:38]} 10. Nbxd4 {[%emt 0:00:06]} Ne7 {[%emt 0:00:17]} 11. O-O {[%emt 0:00:26]} Nbc6 {[%emt 0:00:17]} 12. Nxc6 {[%emt 0:00:26]} Nxc6 {[%emt 0:00:03]} 13. Bg5 {[%emt 0:00:01]} Qc7 {[%emt 0:00:15]} 14. Qa3 {[%emt 0:00:24]} h6 {[%emt 0:02:33]} 15. Bh4 {[%emt 0:00:04]} Bf8 {[%emt 0:02:17]} 16. Qa4 {[%emt 0:00:38]} Bd7 {[%emt 0:00:56]} 17. Bf6 {[%emt 0:00:34]} Rg8 {[%emt 0:01:13]} 18. Qc2 {[%emt 0:01:21]} Be7 {[%emt 0:00:09]} 19. Bxe7 {[%emt 0:00:16]} Nxe7 {[%emt 0:00:02]} 20. Qe2 {[%emt 0:00:16]} Nc6 {[%emt 0:00:23]} 21. Rad1 {[%emt 0:00:43]} O-O-O {[%emt 0:00:35]} 22. b4 {[%emt 0:00:34]} g5 {[%emt 0:00:14]} 23. b5 {[%emt 0:01:08]} axb5 {[%emt 0:00:04]} 24. Bxb5 {[%emt 0:00:02]} g4 {[%emt 0:00:12]} 25. Nd4 {[%emt 0:00:06]} Nxd4 {[%emt 0:00:42]} 26. cxd4 {[%emt 0:00:19]} Bxb5 {[%emt 0:00:04]} 27. Qxb5 {[%emt 0:00:03]} Rg5 {[%emt 0:00:05]} 28. Qe2 {[%emt 0:00:15]} Kb8 {[%emt 0:00:47]} 29. Rc1 {[%emt 0:01:48]} Qd6 {[%emt 0:00:20]} 30. Rc4 {[%emt 0:00:20]} Rc8 {[%emt 0:00:33]} 31. Rxc8+ {[%emt 0:00:27]} Kxc8 {[%emt 0:00:01]} 32. Rc1+ {[%emt 0:00:01]} Kb8 {[%emt 0:00:12]} 33. Qe4 {[%emt 0:01:13]} h5 {[%emt 0:00:56]} 34. Rb1 {[%emt 0:00:20]} Rd5 {[%emt 0:00:08]} 35. g3 {[%emt 0:01:42]} Qc7 {[%emt 0:00:15]} 36. Kg2 {[%emt 0:01:18]} Ka7 {[%emt 0:00:21]} 37. h3 {[%emt 0:00:13]} gxh3+ {[%emt 0:00:28]} 38. Kxh3 {[%emt 0:00:31]} Qc3 {[%emt 0:00:13]} 39. Rd1 {[%emt 0:00:10]} Qb2 {[%emt 0:00:17]} 40. Qe1 {[%emt 0:00:34]} Rf5 {[%emt 0:01:03]} 41. Kg2 {[%emt 0:00:02]} Qc2 {[%emt 0:00:23]} 42. Rd2 {[%emt 0:00:09]} Qc6+ {[%emt 0:00:03]} 43. Kg1 {[%emt 0:00:06]} Qd5 {[%emt 0:01:06]} 44. Qc1 {[%emt 0:00:32]} Rf3 {[%emt 0:00:17]} 45. Qc7 {[%emt 0:01:00]} f5 {[%emt 0:00:58]} 46. a4 {[%emt 0:00:10]} Ra3 {[%emt 0:00:20]} 47. Kh2 {[%emt 0:00:30]} Rxa4 {[%emt 0:00:24]} 48. Rd1 {[%emt 0:00:37]} Ra2 {[%emt 0:00:18]} 49. Kg1 {[%emt 0:00:08]} Qa5 {[%emt 0:00:22]} 50. Qc1 {[%emt 0:00:16]} Ra4 {[%emt 0:00:41]} 51. Qb2 {[%emt 0:00:23]} Qd5 {[%emt 0:00:15]} 52. Rd2 {[%emt 0:00:23]} Ra6 {[%emt 0:00:16]} 53. Rd1 {[%emt 0:00:20]} h4 {[%emt 0:00:18]} 54. gxh4 {[%emt 0:00:39]} e5 {[%emt 0:00:01]} 55. h5 {[%emt 0:00:10]} Qf3 {[%emt 0:00:13]} 56. Rb1 {[%emt 0:00:19]} Qg4+ {[%emt 0:00:27]} 57. Kf1 {[%emt 0:00:02]} Qh3+ {[%emt 0:00:01]} 58. Kg1 {[%emt 0:00:10]} Qg4+ {[%emt 0:00:05]} 59. Kf1 {[%emt 0:00:01]} Qh3+ {[%emt 0:00:31]} 60. Kg1 {[%emt 0:00:01]} Qg4+ {[%emt 0:00:09]} 61. Kf1 {[%emt 0:00:01]} Qh3+ {[%emt 0:00:00]} 62. Kg1 {[%emt 0:00:01]} 1/2-1/2